Cogmind - Beta 13 @@@ ROGUE MODE // 2024.06.19 @ 21:12:26 Player: ovsyanka Result: Self-destructed Performance ------------- Evolutions (2) 1000 Regions Visited (7) 1400 Robots Destroyed (86) 430 Value Destroyed (1572) 1572 Prototype IDs (29) 580 Alien Tech Used (0) 0 Bonus (540) 540 TOTAL SCORE: 5522 Bonus ------- High Alert Combat Kills 191 Follower Combat Kills 66 Aligned with FarCom 300 Friendly Fire -17 Cogmind --------- Core Integrity 538/550 Matter 288/300 Energy 280/280 System Corruption 0% Temperature Cool (0) Movement Treading (160) Location -8/Materials Parts ------- > --- POWER (1) -------- Heavy Ion Engine > --- PROPULSION (3) --- Light Treads Light Treads Carbon-fiber Leg > --- UTILITY (5) ------ Cooling System Medium Storage Unit Targeting Computer Core Shielding Improved Light Armor Plating > --- WEAPON (2) ------- Advanced Beam Cannon Gauss Rifle > --- INVENTORY (10) --- Deuterium Engine Light Nuclear Core Flying Fortress v7 Improved Heat Sink Large Matter Pod (150) Shield Generator Katana Peak State ------------ > --- POWER ------------ Heavy Ion Engine > --- PROPULSION ------- Light Treads Light Treads Carbon-fiber Leg > --- UTILITY ---------- Cooling System Medium Storage Unit Targeting Computer Core Shielding Improved Light Armor Plating > --- WEAPON ----------- Advanced Beam Cannon Gauss Rifle > --- INVENTORY -------- Flying Fortress v7 Improved Heat Sink Large Matter Pod Shield Generator Katana [Rating: 27] Favorites ----------- Power Heavy Ion Engine Engine Heavy Ion Engine Propulsion Light Treads Treads Light Treads Leg Aluminum Leg Wheel Wheel Utility Medium Storage Unit Device Cooling System Storage Medium Storage Unit Processor Targeting Computer Protection Core Shielding Weapon Advanced Beam Cannon Energy Gun Medium Laser Energy Cannon Advanced Beam Cannon Ballistic Gun Gauss Rifle Launcher Improved Grenade Launcher Build | -11 -10 -10 -9 -9 -9 -8 -8 ------- Run | Yrd Mat Min Mat Min Exi Min Mat Slots Evolved 4 | . . . 2 . . . 2 Power . | . . . . . . . . Propulsion 1 | . . . . . . . 1 Utility 3 | . . . 2 . . . 1 Weapon . | . . . . . . . . Parts Attached 78 | 9 29 2 28 1 2 5 2 Power 6 | 1 . . 4 . 1 . . Engine 6 | 1 . . 4 . 1 . . Core . | . . . . . . . . Reactor . | . . . . . . . . Propulsion 27 | 3 18 . 3 . . 2 1 Treads 6 | . 3 . 2 . . 1 . Leg 7 | . 5 . . . . 1 1 Wheel 14 | 3 10 . 1 . . . . Hover . | . . . . . . . . Flight . | . . . . . . . . Utility 11 | 2 4 . 4 . . . 1 Device 5 | 1 2 . 2 . . . . Storage 3 | 1 2 . . . . . . Processor 1 | . . . 1 . . . . Hackware . | . . . . . . . . Protection 2 | . . . 1 . . . 1 Artifact . | . . . . . . . . Weapon 34 | 3 7 2 17 1 1 3 . Energy Gun 7 | 2 3 . 2 . . . . Energy Cannon 15 | . 2 1 10 . 1 1 . Ballistic Gun 3 | 1 . . 1 . . 1 . Ballistic Cannon . | . . . . . . . . Launcher 9 | . 2 1 4 1 . 1 . Special Weapon . | . . . . . . . . Impact Weapon . | . . . . . . . . Slashing Weapon . | . . . . . . . . Piercing Weapon . | . . . . . . . . Special Melee Weapon . | . . . . . . . . Unidentified Prototypes 5 | . . . 5 . . . . Parts Lost 3 | . . . 1 . . 2 . Power . | . . . . . . . . Propulsion 1 | . . . 1 . . . . Utility . | . . . . . . . . Weapon 2 | . . . . . . 2 . Highest Loss Streak 2 | . . . 1 . . 2 . To Critical Strikes . | . . . . . . . . Average Slot Usage (%) 99 | . 99 100 98 100 100 99 100 Engine 11 | . 14 14 11 11 11 11 9 Treads 9 | . 2 . 8 22 22 22 18 Leg 2 | . 5 . . . . . 9 Wheel 12 | . 20 28 13 . . . . Device 12 | . 14 14 12 11 11 11 9 Storage 11 | . 14 14 11 11 11 11 9 Processor 6 | . . . 8 11 11 11 9 Protection 7 | . . . 11 11 11 11 18 Energy Gun 6 | . 21 . . . . . . Energy Cannon 15 | . 3 26 21 11 21 17 9 Ballistic Gun 1 | . 1 . . . . 2 9 Naked Turns . | . . . . . . . . Heaviest Build 32 | 15 31 23 29 31 31 31 32 Greatest Support 40 | 26 40 20 40 40 40 40 40 Greatest Overweight (x) 2 | 1 2 1 2 . . 1 . Average Overweight (x) . | . . 1 . . . . . Largest Inventory Capacity 15 | 8 15 10 10 10 10 10 10 Average Capacity 10 | 6 13 10 10 10 10 10 10 Most Carried 15 | 8 15 10 10 10 10 10 10 Average Carried 10 | 4 11 10 9 10 9 9 9 Final Capacity 10 | 8 10 10 10 10 10 10 10 Final Carried 10 | 6 10 10 10 10 10 10 10 Class Distribution -------------------- 100% | Mutant Dominant Class ---------------- Mutant | -10/Materials Mutant | -10/Mines Mutant | -9/Materials Mutant | -9/Mines Mutant | -9/Exiles Mutant | -8/Mines Mutant | -8/Materials Resources | -11 -10 -10 -9 -9 -9 -8 -8 ----------- Run | Yrd Mat Min Mat Min Exi Min Mat Matter Collected 1582 | 293 546 13 402 15 . 56 257 Remotely . | . . . . . . . . Salvage Created 2597 | 108 726 57 1306 35 . 77 288 Parts 173 | 6 31 5 91 13 . 10 17 Haulers Intercepted 7 | . 2 . 5 . . . . Recyclers Shooed 4 | . . . 2 . . . 2 Parts Field Recycled . | . . . . . . . . Retrieved Matter . | . . . . . . . . Parts Self-Destructed . | . . . . . . . . Prevented . | . . . . . . . . Kills | -11 -10 -10 -9 -9 -9 -8 -8 ------- Run | Yrd Mat Min Mat Min Exi Min Mat Combat Hostiles Destroyed 58 | . 11 4 28 8 . 4 3 Guns 9 | . 8 . . . . . 1 Cannons 18 | . . 1 14 . . 1 2 AOE 29 | . 2 3 13 8 . 3 . Classes Destroyed 12 | 2 5 . 4 . . 1 . Worker 5 | . 2 1 1 . . 1 . Builder 4 | . 1 . 1 . . . 2 Tunneler 2 | 2 . . . . . . . Hauler 7 | . 2 . 5 . . . . Recycler 8 | 1 3 . 3 . . . 1 Operator 1 | . . . 1 . . . . Watcher 1 | . . . 1 . . . . Swarmer 32 | . 3 4 14 8 . 3 . Grunt 15 | . 8 . 5 . . . 2 Duelist 1 | . . . 1 . . . . Sentry 9 | . . . 8 . . . 1 Hunter 1 | . . . . . . 1 . Best Kill Streak 9 | 2 5 4 9 7 . 4 4 Combat Bots Only 7 | . 3 3 7 7 . 3 1 Max Kills in Single Turn 4 | 1 4 4 4 3 . 2 1 Gunslinging . | . . . . . . . . Exploded 3 | . 1 3 3 3 . 1 . Melee . | . . . . . . . . Uniques/NPCs Destroyed . | . . . . . . . . Combat | -11 -10 -10 -9 -9 -9 -8 -8 -------- Run | Yrd Mat Min Mat Min Exi Min Mat Hostile Shots Fired 167 | . 35 2 65 26 . 28 11 Missed 48 | . 10 . 21 7 . 7 3 Damage Taken 1480 | . 298 16 567 187 . 291 121 Core 296 | . 108 9 117 18 . 32 12 Absorbed by Shields . | . . . . . . . . Redirected to Shielding 35 | . . . 23 3 . 7 2 Core Remaining (%) 70 | 100 . 53 . . . 58 . Volleys Fired 163 | 8 50 2 63 6 . 9 25 Largest 2 | 2 2 2 2 2 . 2 2 Hottest 136 | 100 100 120 136 104 . 136 96 Shots Fired 295 | 16 99 3 114 8 1 10 44 Gun 137 | 16 96 . . . . . 25 Cannon 137 | . . 2 107 2 . 7 19 Launcher 21 | . 3 1 7 6 1 3 . Special . | . . . . . . . . Kinetic 36 | 1 10 . . . . . 25 Thermal 238 | 15 86 2 107 2 . 7 19 Explosive 21 | . 3 1 7 6 1 3 . Electromagnetic . | . . . . . . . . Robot Hit Streak 24 | 3 10 5 24 2 . 6 8 Robot Miss Streak 6 | 4 6 . 2 3 . . 4 Penetration Max 1 | . . . . . . . 1 Secondary Targets . | . . . . . . . . Shots Hit Robots 190 | 8 61 2 83 3 . 5 28 Core Hits 103 | 4 32 5 41 7 . 6 8 Critical Kills 1 | . . . 1 . . . . Critical Parts Destroyed . | . . . . . . . . Critical Strikes 8 | . 7 . 1 . . . . Burn 7 | . 7 . . . . . . Meltdown 1 | . . . 1 . . . . Melee Attacks . | . . . . . . . . Impact . | . . . . . . . . Slashing . | . . . . . . . . Piercing . | . . . . . . . . Sneak Attacks . | . . . . . . . . Combat Hostiles . | . . . . . . . . Follow-up Attacks . | . . . . . . . . Damage Inflicted 4960 | 101 912 164 2490 535 . 220 538 Guns 1153 | 101 742 . . . . . 310 Cannons 1907 | . . 36 1541 . . 102 228 Explosions 1885 | . 163 128 941 535 . 118 . Melee . | . . . . . . . . Ramming 15 | . 7 . 8 . . . . Kinetic 356 | . 46 . . . . . 310 Thermal 2704 | 101 696 36 1541 . . 102 228 Explosive 1885 | . 163 128 941 535 . 118 . Electromagnetic . | . . . . . . . . Impact . | . . . . . . . . Slashing . | . . . . . . . . Piercing . | . . . . . . . . Highest Corruption 4 | . . . 4 4 4 4 . Average Corruption 3 | . . . 3 4 4 4 . Corruption Purged . | . . . . . . . . Corruption Blocked . | . . . . . . . . Effects 48 | . . . 24 2 11 11 . Message Errors 11 | . . . 4 1 . 6 . Matter Fused 7 | . . . 4 . 2 1 . Heat Flow Errors 11 | . . . 9 . 2 . . Energy Discharges 2 | . . . . 1 1 . . Parts Rejected 1 | . . . 1 . . . . Data Loss (minor) 9 | . . . 4 . 2 3 . Data Loss (major) 3 | . . . . . 2 1 . Misfires 3 | . . . 2 . 1 . . Alerts 1 | . . . . . 1 . . Overload Shots . | . . . . . . . . Overflow Damage 108 | . . . 57 51 . . . Projectiles . | . . . . . . . . Explosions 108 | . . . 57 51 . . . Melee . | . . . . . . . . Knockbacks . | . . . . . . . . Impact . | . . . . . . . . Kinetic . | . . . . . . . . Secondary . | . . . . . . . . Self-Inflicted Damage 58 | . 3 . 19 36 . . . Shots 3 | . . . 2 1 . . . Rammed 2 | . 1 . 1 . . . . Targets Rammed 2 | . 1 . 1 . . . . Kicked . | . . . . . . . . Crushed . | . . . . . . . . Highest Temperature 214 | 214 27 18 206 . 143 3 . Average Temperature 37 | 101 11 12 34 . 71 2 . Received Heat Transfer 357 | . 159 . 126 . . . 72 Siege Activations . | . . . . . . . . Robots Corrupted . | . . . . . . . . Combat Hostiles . | . . . . . . . . Parts Fried . | . . . . . . . . Impact Corruptions . | . . . . . . . . Robots Melted 3 | . 2 . 1 . . . . Combat Hostiles 2 | . 1 . 1 . . . . Parts Melted 17 | 1 5 . 10 . . 1 . Heat Transferred 6512 | 296 2590 74 2960 . . 185 407 Parts Sabotaged . | . . . . . . . . Parts Stolen . | . . . . . . . . Parts Stripped . | . . . . . . . . Power Chain Reactions . | . . . . . . . . Alert | -11 -10 -10 -9 -9 -9 -8 -8 ------- Run | Yrd Mat Min Mat Min Exi Min Mat Peak Influence 856 | 15 268 144 856 527 . 114 131 Initial 268 | . 9 16 55 268 . . 44 Average 326 | 5 112 45 623 488 . 41 97 Maximum Alert Level 3 | . 1 . 3 2 . . . Low Security (%) 53 | 100 86 100 6 . . 100 100 Level 1 7 | . 13 . 8 7 . . . Level 2 18 | . . . 37 92 . . . Level 3 20 | . . . 47 . . . . Level 4 . | . . . . . . . . Level 5 . | . . . . . . . . High Security . | . . . . . . . . Max Security . | . . . . . . . . Squads Dispatched 4 | . 2 . 2 . . . . Investigation 2 | . 1 . 1 . . . . Extermination . | . . . . . . . . Reinforcement 2 | . 1 . 1 . . . . Assault . | . . . . . . . . Garrison . | . . . . . . . . Intercept . | . . . . . . . . Searches Triggered . | . . . . . . . . Construction Impeded . | . . . . . . . . Haulers Reinforced . | . . . . . . . . Active Scanning Responses . | . . . . . . . . Cargo Convoy Interrupts . | . . . . . . . . Stealth | -11 -10 -10 -9 -9 -9 -8 -8 --------- Run | Yrd Mat Min Mat Min Exi Min Mat Distress Signals 5 | . 1 . 3 . . . 1 Communications Jammed . | . . . . . . . . Distress Signals . | . . . . . . . . Times Spotted 96 | . 27 1 50 9 . 4 5 Peak Tracking Total 8 | . 4 1 7 8 . 3 5 Tactical Retreats 5 | . 2 . 2 1 . . . Traps | -11 -10 -10 -9 -9 -9 -8 -8 ------- Run | Yrd Mat Min Mat Min Exi Min Mat Traps Triggered 5 | . 2 . 3 . . . . Indirectly . | . . . . . . . . Trap Hack Attempts . | . . . . . . . . Triggered . | . . . . . . . . Disarmed 4 | . . . 4 . . . . Reprogrammed . | . . . . . . . . Reused . | . . . . . . . . Traps Extracted . | . . . . . . . . Installed . | . . . . . . . . Triggered . | . . . . . . . . Machines | -11 -10 -10 -9 -9 -9 -8 -8 ---------- Run | Yrd Mat Min Mat Min Exi Min Mat Machines Disabled 5 | . . 1 4 . . . . Max in Single Turn 1 | . . 1 1 . . . . Machines Repaired . | . . . . . . . . Machines Dismantled . | . . . . . . . . Machines Sabotaged . | . . . . . . . . Overloaded Fab Kills . | . . . . . . . . Hacking | -11 -10 -10 -9 -9 -9 -8 -8 --------- Run | Yrd Mat Min Mat Min Exi Min Mat Machines Accessed 8 | . 1 1 4 . 2 . . Terminals 6 | . 1 1 4 . . . . Fabricators . | . . . . . . . . Repair Stations . | . . . . . . . . Recycling Units . | . . . . . . . . Scanalyzers . | . . . . . . . . Garrison Access . | . . . . . . . . Total Hacks 13 | . 3 2 6 . 2 . . Successful 6 | . . . 4 . 2 . . Failed 7 | . 3 2 2 . . . . Catastrophic 2 | . 2 . . . . . . Database Lockouts . | . . . . . . . . Manual 10 | . 3 2 4 . 1 . . Terminals 11 | . 3 2 6 . . . . Fabricators . | . . . . . . . . Repair Stations . | . . . . . . . . Recycling Units . | . . . . . . . . Scanalyzers . | . . . . . . . . Garrison Access . | . . . . . . . . Terminal Hacks 6 | . . . 4 . 2 . . Record 2 | . . . 1 . 1 . . Prototype ID Bank 1 | . . . 1 . . . . Terminal Index 1 | . . . 1 . . . . Disarm Traps 1 | . . . 1 . . . . Derelict Proto ID Bank 1 | . . . . . 1 . . Fabricator Hacks . | . . . . . . . . Repair Station Hacks . | . . . . . . . . Recycling Unit Hacks . | . . . . . . . . Scanalyzer . | . . . . . . . . Garrison Access Hacks . | . . . . . . . . Unauthorized Hacks . | . . . . . . . . Terminals . | . . . . . . . . Fabricators . | . . . . . . . . Repair Stations . | . . . . . . . . Recycling Units . | . . . . . . . . Scanalyzers . | . . . . . . . . Garrison Access . | . . . . . . . . Data Cores Recovered . | . . . . . . . . Used . | . . . . . . . . Hacking Detections 3 | . 1 1 1 . . . . Full Trace Events . | . . . . . . . . Feedback Events . | . . . . . . . . Feedback Blocked . | . . . . . . . . Robot Schematics Acquired . | . . . . . . . . Robots Built . | . . . . . . . . Authchips . | . . . . . . . . Time . | . . . . . . . . Total Robot Build Rating . | . . . . . . . . Part Schematics Acquired . | . . . . . . . . Parts Built . | . . . . . . . . Authchips . | . . . . . . . . Time . | . . . . . . . . Total Part Build Rating . | . . . . . . . . Parts Repaired . | . . . . . . . . Time . | . . . . . . . . Parts Recycled . | . . . . . . . . Recycled Matter . | . . . . . . . . Retrieved Matter . | . . . . . . . . Retrieved Components . | . . . . . . . . Parts Scanalyzed . | . . . . . . . . Part Schematics Acquired . | . . . . . . . . Parts Damaged . | . . . . . . . . Bothacking | -11 -10 -10 -9 -9 -9 -8 -8 ------------ Run | Yrd Mat Min Mat Min Exi Min Mat Used RIF Installer . | . . . . . . . . Robots Hacked . | . . . . . . . . Non-combat . | . . . . . . . . Combat . | . . . . . . . . Robot Hacks Applied . | . . . . . . . . Relay Couplers Released . | . . . . . . . . Fabnet Peak Effective % . | . . . . . . . . Robots Rewired . | . . . . . . . . Allies Hacked . | . . . . . . . . Hacks Repelled . | . . . . . . . . Allies | -11 -10 -10 -9 -9 -9 -8 -8 -------- Run | Yrd Mat Min Mat Min Exi Min Mat Total Allies 2 | . . 2 . . . . . Largest Group 2 | . . 2 2 . . . . Highest-Rated Group 55 | . . 55 55 . . . . Highest-Rated Ally 31 | . . 31 31 . . . . Total Orders . | . . . . . . . . Ally Attacks 14 | . . . 14 . . . . Total Damage 215 | . . . 215 . . . . Kills 2 | . . . 2 . . . . Allies Corrupted . | . . . . . . . . Allies Melted . | . . . . . . . . Intel | -11 -10 -10 -9 -9 -9 -8 -8 ------- Run | Yrd Mat Min Mat Min Exi Min Mat Robot Analysis Total . | . . . . . . . . Derelict Logs Recovered 2 | . . 2 . . . . . Drone Launches . | . . . . . . . . Drone Recoveries . | . . . . . . . . Exploration | -11 -10 -10 -9 -9 -9 -8 -8 ------------- Run | Yrd Mat Min Mat Min Exi Min Mat Turns Passed 4432 | 114 1234 227 1734 114 363 343 303 Spaces Moved 2898 | 82 858 208 1137 62 224 198 129 Core 16 | 16 . . . . . . . Treads 1006 | . 21 . 372 62 224 198 129 Legs 167 | . 167 . . . . . . Wheels 1709 | 66 670 208 765 . . . . Hover . | . . . . . . . . Flight . | . . . . . . . . Fastest Speed 50 | 50 95 95 90 160 160 160 160 Average Speed 122 | 80 105 95 122 160 160 160 160 Slowest Speed 240 | 100 240 95 240 160 160 240 160 Overloaded Moves . | . . . . . . . . Propulsion Burnouts . | . . . . . . . . Robots Hopped . | . . . . . . . . Cave-ins Triggered . | . . . . . . . . Exploration Rate (%) 51 | 4 94 65 90 25 60 59 11 Regions Visited 7 Branch Regions 4 Pre-discovered Areas 2 | . . 1 . . 1 . . Known Exits Taken 1 | . . . 1 . . . . Unknown Exits Taken 6 | 1 1 1 . 1 1 1 . Scrap Searched 2 | . . 2 . . . . . Spaces Dug . | . . . . . . . . Terrain Destroyed 172 | . 14 10 59 54 9 25 1 Melee . | . . . . . . . . Projectile 3 | . . . . . . 2 1 AOE 169 | . 14 10 59 54 9 23 . Terrain Rammed . | . . . . . . . . Walls Destroyed . | . . . . . . . . Machines Disabled . | . . . . . . . . Actions | -11 -10 -10 -9 -9 -9 -8 -8 --------- Run | Yrd Mat Min Mat Min Exi Min Mat Total 3492 | 111 1085 234 1368 68 230 213 183 Wait 269 | . 120 21 105 . . . 23 Move 2891 | 81 857 207 1136 61 223 197 129 Hop . | . . . . . . . . Pick Up 40 | 10 14 1 11 . 1 . 3 Fast Attach 26 | 6 3 . 14 . . 3 . Attach 6 | 1 . . 2 . . 1 2 Detach 1 | . . . . . . 1 . Swap 46 | 2 26 2 12 1 2 1 . Drop 48 | 3 14 1 24 . 4 1 1 Fire 163 | 8 50 2 63 6 . 9 25 Melee . | . . . . . . . . Ram 1 | . 1 . . . . . . Kick . | . . . . . . . . Crush 1 | . . . 1 . . . . Escape Stasis . | . . . . . . . . Rewire . | . . . . . . . . Trap . | . . . . . . . . Miscellaneous . | . . . . . . . . Route ------- -11/Scrapyard -10/Materials (discovered 4 exits: *Mat x3 / *Min) -10/Mines -9/Materials (discovered 5 exits: [*Mat x3] / *Min x2) -9/Mines -9/Exiles -8/Mines -8/Materials History --------- Turn | Location | Event 6 | -11/Scrapyard | Discovered new exit (range 16) 115 | -11/Scrapyard | Entered Materials 312 | -10/Materials | Build established: Mutant 335 | -10/Materials | Discovered new exit (range 4) 685 | -10/Materials | Discovered new exit (range 13) 860 | -10/Materials | Discovered new exit (range 16) 922 | -10/Materials | Discovered new exit (range 16) 1349 | -10/Materials | Entered Mines 1376 | -10/Mines | Received a Rocket Launcher from a helpful Derelict 1421 | -10/Mines | Learned 4 Materials zone layouts 1480 | -10/Mines | Learned location of Storage (-7) 1557 | -10/Mines | Discovered new exit (range 9) 1576 | -10/Mines | Entered Materials 1576 | -9/Materials | Accompanied by 2 allies 1576 | -9/Materials | Evolved 2 slots: Utility x2 1577 | -9/Materials | Identified exit to Mines 1581 | -9/Materials | Led the pair of lost Derelicts to an unsafe place 1764 | -9/Materials | Destroyed 7 combat bots 1898 | -9/Materials | Discovered new exit (range 14) 2776 | -9/Materials | Discovered new exit (range 9) 3241 | -9/Materials | Discovered new exit (range 16) 3297 | -9/Materials | Discovered exit to Mines (range 8) 3310 | -9/Materials | Entered Mines 3341 | -9/Mines | Destroyed 7 combat bots 3417 | -9/Mines | Deemed a non-threat by the Exiles lab entrance 3417 | -9/Mines | Discovered new exit (range 5) 3424 | -9/Mines | Entered Exiles 3466 | -9/Exiles | Met 8R-AWN 3493 | -9/Exiles | Met EX-HEX 3544 | -9/Exiles | Met EX-BIN 3567 | -9/Exiles | Aligned with FarCom system 3568 | -9/Exiles | Given EX-Vault access code 3607 | -9/Exiles | Opened EX-Vault 3623 | -9/Exiles | Found Flying Fortress v7 3658 | -9/Exiles | Warned to stay clear of 0b10 Research branches 3709 | -9/Exiles | Met EX-DEC 3718 | -9/Exiles | Learned location of Zion (-6) 3770 | -9/Exiles | Discovered new exit (range 12) 3787 | -9/Exiles | Left Exiles lab with Flying Fortress v7 3787 | -9/Exiles | Entered Mines 4108 | -8/Mines | Discovered new exit (range 14) 4130 | -8/Mines | Entered Materials 4130 | -8/Materials | Evolved 2 slots: Propulsion x1, Utility x1 4433 | -8/Materials | Self-destructed Last Messages --------------- 04212_ R-06 Scavenger collects Sml. Storage Unit. 04214_ Acquired 95 matter. 04215_ K-01 Serf collects debris. 04235_ Acquired Lgt. Nuclear Core. 04250_ Slug penetrates Wall. 04273_ G-47 Trooper destroyed. 04273_ Slug penetrates Door. 04276_ Acquired 49 matter. 04285_ Dropped Imp. Heat Sink. 04285_ Acquired Imp. Heat Sink. 04286_ U-05 Engineer builds a Door. 04300_ Slug penetrates Wall. 04309_ M-13 Machinist repairs Heat Sink. 04310_ Slug penetrates Wall. 04317_ Acquired 26 matter. [A new version of Cogmind is available, see F1 News page.] 04347_ K-01 Serf collects debris. 04426_ Slug penetrates A-02 Transporter. 04432_ W-25 Informer sends out distress signal. Map ----- +----------------------------------------------------+ | ???????????????????????????# # #??? | | ???????????????????????????# [ + #??? | | ?????????????????????????########## #??? | | ?????????????????????????# # #??? | | ?????????????????????????# """ !# #??? | | ?????????????????????????# """ # #??? | | ?????????????????????????# """ + #??? | | ?????????????????????????# # #??? | | ?????????????????????????#! """ # #??? | | ?????????????????????????# """ # #??? | | ?????????????????????????# """ # #??? | | ?????????????????????????# # #??? | | ??????????????????????????#+####### #??? | | ????????????????????????### ##???## ##?? | | ????????????????????????# ##### #?? | | ????????????????????????# [=* #?? | | ????????????????????????# !!%= #?? | | ????????????????????????# m##### #?? | | ????????????????????????## ##???######?? | | ?????????????????????????# #???????????? | | ?????????????????????????# ###########?? | | ?????????????????????????# ## """ #?? | | ????????????# #####+#?##a ## """"" #?? | | ????????????# ## # """"" #?? | | ????????????#w # """"" #?? | | ????????????# s k@ [+ """ #?? | | ????????????+ ##### ### ! # #?? | | ????????????????????#???## ### #?? | | ?????????????ss??????????# #?# #?? | | ??????????Y??????????????# #?# "T" #?? | | ?????????????????????????# #?##########?? | | ?????????????????????????# #????????????? | | ??????????????s?????#+####+#????????????? | | ????????????????????# =*#????????????? | | ????????????????????# #????????????? | | ????????????????????# #????????????? | | ????????????????????# #????????????? | | ????????????????????# #????????????? | | ????????????????????# #????????????? | | ????????????????????####+####???????????? | | ????????????????????# #???????????? | | ????????????????????# #???????????? | | ????????????????????# #???????????? | | ????????????????????# #####???????????? | | ????????????????????# ????????????????? | | ????????????????????# ????????????????? | | ????????????????????# ????????????????? | | ????????????????????# ????????????????? | | ????????????????????# ????????????????? | | ????????????????????# ????????????????? | +----------------------------------------------------+ Best States ------------- Heat Dissipation 53 Energy Generation 14 Energy Capacity 280 Matter Stores 300 Matter Capacity 300 Sight Range 16 Terrain Scan Density 10 Armor Coverage 150 Core Shielding 20 Evasion (%) 55 Targeting Accuracy 5 Recoil Reduction 2 Item Schematics ----------------- None Robot Schematics ------------------ None Fabricated ------------ Nothing Alien Tech Used ----------------- None Achievements -------------- None Challenges ------------ None Game ------ Seed AlertTargetGun Manual? 0 Play Time 00:43:28 Cumulative 43.3 hours Start 2024.06.18 @ 09:48:15 End 2024.06.19 @ 21:12:26 Sessions 3 Manual Loads 0 Difficulty Rogue Special Mode None Game No. 27 Rogue 14 Adventurer 13 Explorer 0 Win Type - Total 0 Types 0/0/0/0/0/0/0/0/0 Lore% 23 Gallery% 38 Achievement% 32 Wizard Run 0 Options --------- Layout 2 ASCII 0 Keyboard 0 Movement Numpad Keybinds 0 Fullscreen 2 Font 16/Swanston Map View 55x47 Zoom Use 0% Tactical HUD 1 Map Filters NONE Filters NONE Steam 0 RUN: 9531f1a3-d3e8-4d94-a3fb-f52d469987a0